bitfinex-derivatives/quotes_SOLF0:USTF0_20260126
["timestamp","ask_amount","ask_price","bid_price","bid_amount"]
[1769452251179,56.74827959,125.32,125.26,7.1918]
[1769452253178,63.93677959,125.32,125.23,167.33352344]
[1769452254175,56.74827959,125.32,125.26,7.1918]
[1769452254974,56.74827959,125.38,125.29,55.43552344]
[1769452256478,7.1863,125.36,125.29,62.62552344]
[1769452257983,63.93367959,125.38,125.3,7.1895]
[1769452258384,63.93367959,125.38,125.3,55.43552344]
[1769452259288,63.93257959,125.4,125.3,167.27002344]
[1769452259579,63.93257959,125.4,125.31,55.43552344]
[1769452259781,63.93257959,125.4,125.31,62.62402344]
[1769452260085,63.93267959,125.39,125.31,62.62402344]
[1769452260286,56.74827959,125.39,125.31,55.43552344]
[1769452260474,56.74827959,125.36,125.28,167.28862344]
[1769452260782,56.74827959,125.36,125.3,7.1894]
[1769452261085,56.74827959,125.4,125.29,55.43552344]
[1769452261273,63.93307959,125.39,125.3,55.43552344]
[1769452261887,56.74827959,125.39,125.3,55.43552344]
[1769452262775,56.74827959,125.39,125.33,0.05463061]
[1769452263174,63.93287959,125.39,125.33,0.05463061]
[1769452264289,56.74827959,125.39,125.33,55.49015405]
[1769452264786,56.74827959,125.38,125.33,0.05463061]
[1769452264983,56.74827959,125.38,125.27,55.43552344]
[1769452265281,63.93257959,125.4,125.3,55.43552344]
[1769452265689,56.74827959,125.39,125.3,62.62452344]
[1769452265980,56.74827959,125.37,125.3,55.43552344]
[1769452266382,56.74827959,125.37,125.31,7.1887]
[1769452267281,56.74827959,125.37,125.29,7.1898]
[1769452268185,56.74827959,125.37,125.3,7.1894]
[1769452268388,56.74827959,125.37,125.28,55.43552344]
[1769452269790,56.74827959,125.36,125.28,55.43552344]
[1769452270984,7.1867,125.35,125.28,62.62612344]
[1769452271185,56.74827959,125.36,125.28,55.43552344]
[1769452271380,0.05483099,125.33,125.31,0.05214648]
[1769452271782,56.74827959,125.39,125.31,55.48766992]
[1769452272183,56.74827959,125.37,125.28,55.43552344]
[1769452273185,56.74827959,125.37,125.31,0.05177462]
[1769452274294,56.74827959,125.37,125.32,7.1884]
[1769452274490,56.74827959,125.43,125.35,55.43552344]
[1769452274697,56.74827959,125.46,125.37,167.20832344]
[1769452274889,63.92867959,125.46,125.38,7.1844]
[1769452275194,56.74827959,125.46,125.39,111.756]
[1769452275498,62.71661606,125.49,125.42,7.1826]
[1769452275992,56.74827959,125.52,125.43,55.43552344]
[1769452276296,56.74827959,125.52,125.44,0.05960162]
[1769452276896,56.74827959,125.52,125.43,55.43552344]
[1769452277091,56.74827959,125.5,125.39,55.43552344]
[1769452277297,56.74827959,125.5,125.4,55.43552344]
[1769452277494,56.74827959,125.5,125.41,55.43552344]
[1769452277698,56.74827959,125.5,125.41,117.43552344]
[1769452278095,56.74827959,125.5,125.41,55.43552344]
[1769452278900,56.74827959,125.5,125.42,7.1825]
[1769452279405,60.32677162,125.48,125.39,7.1841]
[1769452279901,53.14737162,125.48,125.4,52.74222828]
[1769452281494,53.14737162,125.48,125.41,52.74222828]
[1769452281696,55.01094394,125.53,125.44,52.74222828]
[1769452281896,108.15831556,125.53,125.44,52.74222828]
[1769452282306,108.15831556,125.53,125.46,59.92242828]
[1769452283007,108.15831556,125.53,125.46,52.74222828]
[1769452283204,53.14737162,125.52,125.41,111.7341]
[1769452283509,60.97928041,125.53,125.41,111.7341]
[1769452283510,53.14737162,125.5,125.42,7.1824]
[1769452283709,114.12665203,125.53,125.43,52.74222828]
[1769452284010,114.12665203,125.53,125.44,164.45402828]
[1769452284208,108.15831556,125.53,125.46,7.1802]
[1769452285204,108.15831556,125.53,125.45,52.74222828]
[1769452285598,55.01094394,125.53,125.47,52.74222828]
[1769452285999,42.39204394,125.53,125.49,7.1785]
[1769452286303,53.14737162,125.62,125.53,52.74222828]
[1769452286497,59.11570809,125.62,125.53,52.74222828]
[1769452286703,59.11570809,125.62,125.5,52.74222828]
[1769452286704,53.14737162,125.59,125.5,52.74222828]
[1769452286909,59.11570809,125.58,125.47,164.42262828]
[1769452287210,59.11570809,125.58,125.47,52.74222828]
[1769452287707,59.11570809,125.58,125.48,164.41842828]
[1769452287903,59.11570809,125.58,125.49,164.40682828]
[1769452287904,53.14737162,125.58,125.49,164.40682828]
[1769452288414,53.14737162,125.58,125.43,318.3]
[1769452288415,53.14737162,125.42,125.32,52.74222828]
[1769452288610,53.14737162,125.42,125.26,311.24875872]
[1769452288611,53.14737162,125.48,125.35,111.7923]
[1769452288804,53.14737162,125.48,125.36,52.74222828]
[1769452289005,7.1806,125.46,125.36,52.74222828]
[1769452289310,53.14737162,125.47,125.38,52.74222828]
[1769452289712,0.05394328,125.44,125.4,52.74222828]
[1769452289911,53.14737162,125.5,125.4,52.74222828]
[1769452290110,53.14737162,125.5,125.41,52.79266346]
[1769452290606,53.14737162,125.5,125.41,52.74222828]
[1769452291012,164.81007162,125.5,125.41,52.74222828]
[1769452292612,111.6552,125.51,125.41,52.74222828]
[1769452292814,111.6599,125.5,125.41,52.74222828]
[1769452293613,111.6725,125.49,125.41,52.74222828]
[1769452294708,0.05034124,125.46,125.4,62.0]
[1769452294911,53.14737162,125.28,125.18,23.8983276]
[1769452295117,53.14737162,125.28,125.15,5.96833647]
[1769452295118,53.14737162,125.25,125.15,5.96833647]
[1769452295312,172.25457162,125.22,125.12,5.96833647]
[1769452295514,111.9221,125.21,125.09,5.96833647]
[1769452295710,111.9393,125.19,125.09,5.96833647]
[1769452295918,119.155,125.17,125.05,131.60833647]
[1769452296118,0.06099951,125.16,125.05,131.60833647]
[1769452296316,112.02729951,125.16,125.05,131.60833647]
[1769452296518,111.9491,125.18,125.05,131.60833647]
[1769452296519,111.9491,125.18,125.05,155.52910768]
[1769452297020,111.9491,125.18,125.08,58.71056475]
[1769452297625,0.05227353,125.14,125.08,58.71056475]
[1769452298117,0.05227353,125.14,125.08,52.74222828]
[1769452301918,112.03557353,125.14,125.05,120.71056475]
[1769452302125,112.03557353,125.14,125.06,52.74222828]
[1769452302323,111.9833,125.14,125.06,52.74222828]
[1769452302717,0.05147443,125.11,125.06,52.74222828]
[1769452303024,7.199,125.14,125.06,52.74222828]
[1769452303617,119.1811,125.14,125.06,51.35222828]
[1769452304620,119.2022,125.12,125.06,51.35222828]
[1769452305417,7.2,125.12,125.06,51.35222828]
[1769452306117,7.1988,125.14,125.06,51.35222828]
[1769452306316,0.05871404,125.1,125.08,0.05127079]
[1769452306524,111.977,125.15,125.08,0.05127079]
[1769452307917,119.1752,125.15,125.08,0.05127079]
[1769452308218,111.9575,125.17,125.08,52.79349907]
[1769452308724,111.9575,125.17,125.08,52.74222828]
[1769452309220,119.1708,125.15,125.11,0.05812847]
[1769452310925,7.1973,125.17,125.11,0.05812847]
[1769452312220,119.1519,125.17,125.11,0.05812847]
[1769452313125,7.1981,125.16,125.11,0.05812847]
[1769452313324,111.9637,125.16,125.11,0.05812847]
[1769452313526,111.9732,125.15,125.11,0.05812847]
[1769452314432,112.04236246,125.14,125.05,438.77856826]
[1769452314823,111.9816,125.14,125.05,438.77856826]
[1769452315732,0.05220486,125.11,125.05,119.91856826]
[1769452316232,7.25290486,125.11,125.05,119.91856826]
[1769452320435,7.25290486,125.11,125.02,1.39072054]
[1769452320436,224.0566,125.09,125.02,1.39072054]
[1769452320734,7.2036,125.06,125.0,367.30196259]
[1769452320929,7.2036,125.06,125.0,368.69351729]
[1769452321336,7.2026,125.08,125.01,57.91856826]
[1769452321535,7.2026,125.08,125.03,57.91856826]
[1769452321836,112.013,125.11,125.03,57.91856826]
[1769452322037,7.2014,125.1,125.03,57.91856826]
[1769452322640,7.2002,125.12,125.03,57.91856826]
[1769452322839,7.2002,125.12,125.05,57.97468608]
[1769452323137,7.199,125.14,125.05,65.17828608]
[1769452323327,111.9792,125.15,125.05,65.17828608]
[1769452323532,111.9792,125.15,125.06,119.91856826]
[1769452323835,170.53613808,125.12,125.03,376.89856826]
[1769452324232,170.54003808,125.11,125.03,376.89856826]
[1769452324440,0.05307295,125.09,125.03,376.89856826]
[1769452325332,0.05307295,125.09,125.03,318.98]
[1769452326640,7.25477295,125.09,125.03,318.98]
[1769452326841,7.25477295,125.09,125.03,380.98]
[1769452327140,7.25477295,125.09,125.0,1.3915547]
[1769452327141,58.58531103,125.09,125.0,1.3915547]
[1769452327535,58.53223808,125.09,125.0,1.3915547]
[1769452328231,7.2023,125.08,125.0,1.3915547]
[1769452328837,65.73453808,125.08,125.0,1.3915547]
[1769452329045,58.53223808,125.08,124.99,57.91856826]
[1769452330040,58.53223808,125.08,125.0,62.0]
[1769452330546,65.73443808,125.08,125.0,69.2067]
[1769452330940,65.73443808,125.08,125.0,127.12526826]
[1769452331242,58.53223808,125.08,124.98,59.31028992]
[1769452331946,7.2035,125.06,124.99,7.2073]
[1769452332243,58.53223808,125.08,124.99,7.2073]
[1769452332445,65.73493808,125.08,125.01,7.2061]
[1769452334749,58.53223808,125.08,125.01,7.2061]
[1769452335048,58.53223808,125.11,125.02,57.91856826]
[1769452335946,65.73193808,125.13,125.05,7.2038]
[1769452336251,58.53223808,125.13,125.05,7.2038]
[1769452336852,7.2005,125.11,125.04,57.91856826]
[1769452337849,65.73273808,125.11,125.01,170.01356826]
[1769452338049,65.73273808,125.11,125.03,7.205]
[1769452338550,65.73273808,125.11,125.03,57.91856826]
[1769452339052,65.73273808,125.11,125.05,7.2039]
[1769452339449,58.53223808,125.11,125.05,7.2039]
[1769452340249,59.74299966,125.14,125.06,7.2033]
[1769452340551,7.1999,125.12,125.06,7.2033]
[1769452340752,7.1999,125.12,125.04,58.34602999]
[1769452342056,7.1999,125.12,125.05,7.2039]
[1769452342954,59.74299966,125.14,125.04,58.34602999]
[1769452343255,59.74299966,125.14,125.05,58.34602999]
[1769452343459,66.94179966,125.14,125.05,58.34602999]
[1769452344752,59.74299966,125.14,125.08,7.2021]
[1769452346057,7.198,125.16,125.09,7.2015]
[1769452346253,66.94099966,125.16,125.09,7.2015]
[1769452346658,59.74299966,125.16,125.1,7.2009]
[1769452347952,0.0547568,125.14,125.12,0.05576624]
[1769452351057,66.99655646,125.14,125.07,7.2025]
[1769452351262,59.79775646,125.14,125.07,7.2025]
[1769452352153,59.74299966,125.12,125.06,7.2033]
[1769452352957,0.05102348,125.1,125.06,7.2033]
[1769452356263,0.05102348,125.1,125.07,0.0545285]
[1769452356567,59.74299966,125.16,125.07,58.40055849]
[1769452356763,59.74299966,125.16,125.07,170.44085849]
[1769452357066,65.72095403,125.18,125.08,58.34602999]
[1769452357464,66.93979966,125.18,125.08,58.34602999]
[1769452358257,0.05791513,125.14,125.12,0.05434131]
[1769452358464,66.93979966,125.18,125.12,0.05434131]
[1769452359256,59.74299966,125.18,125.12,7.25414131]
[1769452359765,66.93939966,125.18,125.12,0.05434131]
[1769452360062,7.1964,125.18,125.12,0.05434131]
[1769452361265,66.93999966,125.17,125.12,0.05434131]
[1769452361471,66.93999966,125.17,125.1,58.34602999]
[1769452361472,59.74299966,125.17,125.07,58.34602999]
[1769452362882,7.1982,125.15,125.09,7.2016]
[1769452363981,111.9481,125.18,125.09,7.2016]
[1769452363982,66.94059966,125.16,125.09,7.2016]
[1769452364275,66.94059966,125.16,125.07,58.34602999]
[1769452364276,59.74299966,125.16,125.1,7.2009]
[1769452367980,59.74299966,125.16,125.07,232.38712999]
[1769452367981,66.94069966,125.16,125.07,232.38712999]
[1769452368168,66.94069966,125.16,125.08,58.34602999]
[1769452369879,66.94069966,125.16,125.1,7.201]
[1769452371683,10.71320396,125.16,125.1,7.201]
[1769452374888,0.06079521,125.14,125.1,7.201]
[1769452375485,0.06079521,125.14,125.08,58.34602999]
[1769452375791,52.31428269,125.18,125.11,0.0562198]
[1769452376087,52.31428269,125.18,125.11,60.42583292]
[1769452376288,52.31428269,125.18,125.11,60.36961312]
[1769452376883,52.31428269,125.18,125.12,7.1999]
[1769452377085,52.31428269,125.18,125.13,0.05818092]
[1769452377492,45.11748269,125.18,125.13,7.25728092]
[1769452380794,45.11748269,125.18,125.13,0.05818092]
[1769452381193,7.196,125.19,125.13,60.42779404]
[1769452381392,350.0122,125.26,125.16,60.36961312]
[1769452381393,45.92832986,125.26,125.16,60.36961312]
[1769452381889,7.1924,125.25,125.16,60.36961312]
[1769452382092,46.0831649,125.29,125.18,66.34644046]
[1769452382299,46.0831649,125.29,125.2,60.43107393]
[1769452382694,46.23693427,125.28,125.2,60.43107393]
[1769452382891,46.23693427,125.28,125.2,60.36961312]
[1769452383202,46.23693427,125.28,125.23,0.0593966]
[1769452384101,46.23693427,125.28,125.2,60.36961312]
[1769452384294,46.23693427,125.28,125.19,318.98]
[1769452384295,46.44530134,125.27,125.17,60.36961312]
[1769452384492,0.05727924,125.27,125.19,172.30341312]
[1769452384688,0.05727924,125.27,125.2,66.34644046]
[1769452384891,46.53754198,125.3,125.2,66.34644046]
[1769452385102,46.53754198,125.3,125.23,60.36961312]
[1769452385600,46.68383747,125.33,125.23,60.36961312]
[1769452385796,46.73635809,125.32,125.23,60.36961312]
[1769452386098,46.73635809,125.32,125.25,0.05941169]
[1769452386300,7.1897,125.3,125.25,0.05941169]
[1769452386600,46.82203636,125.29,125.21,60.36961312]
[1769452386899,46.82203636,125.29,125.18,5.97682734]
[1769452386900,7.1914,125.27,125.2,7.1948]
[1769452387296,54.01343636,125.27,125.18,60.36961312]
[1769452387596,7.1931,125.24,125.17,7.1969]
[1769452387802,46.96702003,125.26,125.17,7.1969]
[1769452387995,46.96702003,125.29,125.19,60.36961312]
[1769452388298,46.96702003,125.29,125.2,60.42270195]
[1769452388687,46.96702003,125.29,125.2,60.36961312]
[1769452389089,46.96702003,125.29,125.2,67.56441312]
[1769452389291,46.96702003,125.29,125.23,0.05800607]
[1769452389694,7.1908,125.28,125.23,0.05800607]
[1769452390097,54.43959354,125.28,125.23,0.05800607]
[1769452390303,54.44019354,125.27,125.2,60.36961312]
[1769452390604,47.24879354,125.27,125.17,60.36961312]
[1769452390795,7.1926,125.25,125.17,60.36961312]
[1769452390996,7.1926,125.25,125.14,430.8549]
[1769452390997,47.38704049,125.22,125.14,60.36961312]
[1769452391202,47.38704049,125.22,125.11,60.36961312]
[1769452391405,7.1934,125.24,125.15,60.36961312]
[1769452391618,7.1934,125.24,125.17,0.05409357]
[1769452392001,7.1937,125.23,125.17,0.05409357]
[1769452392199,47.52310854,125.23,125.17,0.05409357]
[1769452392399,53.49993588,125.23,125.17,0.05409357]
[1769452392908,47.60409934,125.21,125.12,60.36961312]
[1769452393106,47.6582555,125.21,125.12,60.36961312]
[1769452393502,47.60409934,125.21,125.12,60.36961312]
[1769452394007,47.73764335,125.18,125.09,379.20961312]
[1769452394200,47.79675186,125.18,125.09,379.20961312]
[1769452394399,7.1971,125.17,125.09,386.41111312]
[1769452394800,55.06436444,125.21,125.13,7.1992]
[1769452395000,55.06436444,125.21,125.13,67.56881312]
[1769452395306,55.06436444,125.21,125.13,60.36961312]
[1769452395506,47.86916444,125.21,125.14,7.1986]
[1769452396306,55.06406444,125.21,125.13,60.36961312]
[1769452396504,55.06406444,125.21,125.16,0.05356279]
[1769452397202,47.86916444,125.21,125.16,0.05356279]
[1769452401410,55.06396444,125.21,125.16,0.05356279]
[1769452402097,56.18030189,125.2,125.16,0.05356279]
[1769452402409,48.98490189,125.2,125.12,7.1994]
[1769452402706,49.15461771,125.19,125.1,59.24779151]
[1769452403101,49.10187913,125.19,125.1,59.24779151]
[1769452403707,49.10187913,125.19,125.05,126.4613]
[1769452403708,49.21744544,125.03,124.91,59.24779151]
[1769452404105,49.21744544,125.03,124.94,59.24779151]
[1769452404298,49.21744544,125.03,124.96,0.05081765]
[1769452404704,0.06118922,125.0,124.96,0.05081765]
[1769452405308,7.26828922,125.0,124.96,0.05081765]
[1769452405806,7.26828922,125.0,124.91,288.24779151]
[1769452406403,7.2071,125.0,124.91,288.24779151]
[1769452406603,7.2071,125.0,124.91,350.24779151]
[1769452407007,0.05667936,124.97,124.91,350.24779151]
[1769452407907,0.05667936,124.97,124.91,121.24779151]
[1769452408508,0.05667936,124.97,124.92,59.24779151]
[1769452409514,57.67105526,125.01,124.93,0.05536885]
[1769452409812,57.67105526,125.01,124.93,59.30316036]
[1769452410012,57.67105526,125.01,124.93,59.24779151]
[1769452410817,50.46455526,125.01,124.93,59.24779151]
[1769452412009,0.05084945,124.98,124.93,59.24779151]
[1769452414208,0.05084945,124.98,124.92,59.24779151]
[1769452418814,7.25894945,124.98,124.92,59.24779151]
[1769452420518,7.2088,124.97,124.92,59.24779151]
[1769452421820,7.2093,124.96,124.92,59.24779151]
[1769452422024,112.1432,124.96,124.89,59.24779151]
[1769452422518,7.2104,124.94,124.89,59.24779151]
[1769452423016,0.05724131,124.93,124.9,59.30725888]
[1769452423319,7.2094,124.96,124.9,59.30725888]
[1769452423617,7.2094,124.96,124.9,65.28408622]
[1769452423817,7.2094,124.96,124.9,65.22461885]
[1769452424412,7.2094,124.96,124.92,0.05607602]
[1769452424613,7.2094,124.96,124.92,59.30386753]
[1769452424817,7.2084,124.98,124.92,59.30386753]
[1769452425214,7.2084,124.98,124.92,59.24779151]
[1769452425418,7.2086,124.97,124.92,59.24779151]
[1769452425720,7.2086,124.97,124.94,0.05287574]
[1769452426619,164.54737128,125.04,124.96,59.24779151]
[1769452427118,7.2056,125.03,124.96,59.24779151]
[1769452427518,7.2056,125.03,124.99,0.05858975]
[1769452429828,7.2057,125.02,124.99,0.05858975]
[1769452430421,164.64226346,125.05,124.99,0.05858975]
[1769452431928,7.2051,125.03,124.99,0.05858975]
[1769452433230,7.2057,125.02,124.99,0.05858975]
[1769452433535,52.53416049,125.04,124.97,61.39894676]
[1769452434027,7.2052,125.03,124.97,61.39894676]
[1769452434728,0.0543304,125.01,124.97,61.39894676]
[1769452440434,59.73866049,125.04,124.98,0.05483604]
[1769452440644,59.73866049,125.04,124.98,61.4537828]
[1769452441027,7.2039,125.05,124.98,68.6614828]
[1769452441429,7.2039,125.05,124.98,68.60664676]
[1769452441825,7.2039,125.05,125.0,0.06133722]
[1769452443635,7.2034,125.06,125.0,61.46028398]
[1769452443831,164.40817042,125.08,125.0,61.46028398]
[1769452444133,52.37307042,125.07,125.0,61.46028398]
[1769452444338,52.37307042,125.07,125.0,61.39894676]
[1769452444732,52.37307042,125.07,125.02,0.05842966]
[1769452444931,7.2041,125.05,125.02,0.05842966]
[1769452448231,52.31413003,125.1,125.04,2.34609345]
[1769452448437,52.31413003,125.12,125.06,2.34609345]
[1769452448834,7.2005,125.11,125.06,2.34609345]
[1769452449238,52.31413003,125.12,125.05,2.34609345]
[1769452449629,52.31413003,125.12,125.03,61.39894676]
[1769452450935,7.2016,125.09,125.03,68.60394676]
[1769452453349,7.2016,125.09,125.03,61.39894676]
[1769452454249,7.201,125.1,125.03,61.39894676]
[1769452455548,7.2005,125.11,125.05,61.39894676]
[1769452456445,7.1999,125.13,125.05,61.39894676]
[1769452457961,7.1999,125.13,125.05,68.60224676]
[1769452458848,52.09792245,125.12,125.05,61.39894676]
[1769452459055,52.09792245,125.12,125.03,7.2045]
[1769452459454,52.09792245,125.12,125.03,71.22334621]
[1769452460046,7.201,125.1,125.03,71.22334621]
[1769452462556,52.04023674,125.1,125.03,64.01884621]
[1769452462851,52.04023674,125.1,125.02,294.3]
[1769452463255,7.2027,125.08,125.02,294.3]
[1769452463454,52.04023674,125.1,125.02,294.3]
[1769452464554,7.2029,125.07,125.02,358.31884621]
[1769452464954,7.2029,125.07,125.02,294.3]
[1769452465952,51.99834071,125.07,125.02,281.2672]
[1769452466154,51.99834071,125.07,124.99,64.01884621]
[1769452466649,59.20164071,125.07,125.0,71.22554621]
[1769452466856,52.23579705,125.1,125.0,64.01884621]
[1769452467452,7.2022,125.08,125.02,71.22444621]
[1769452467659,52.23579705,125.1,125.02,64.01884621]
[1769452468657,0.05057003,125.07,125.02,64.01884621]
[1769452469046,5.98015556,125.12,125.03,64.01884621]
[1769452469255,52.25871386,125.15,125.04,64.01884621]
[1769452469452,52.25871386,125.15,125.06,64.01884621]
[1769452469650,2.34345358,125.14,125.07,2.34345358]
[1769452470053,54.58815119,125.14,125.07,2.34345358]
[1769452470253,7.1993,125.13,125.07,2.34345358]
[1769452470450,7.1993,125.13,125.09,0.05995972]
[1769452470759,2.34345358,125.13,125.09,0.05995972]
[1769452471657,52.24469761,125.14,125.09,0.05995972]
[1769452471957,7.1999,125.12,125.09,0.05995972]
[1769452472256,52.15584753,125.12,125.05,319.16]
[1769452472460,52.20829001,125.12,125.05,319.16]
[1769452472860,52.14213243,125.1,125.05,294.2533]
[1769452473356,52.14213243,125.1,125.01,64.01884621]
[1769452473555,7.2024,125.08,125.01,71.22494621]
[1769452474861,7.2024,125.08,125.03,0.05477171]
[1769452475864,7.2031,125.07,125.03,0.05477171]
[1769452477262,7.2033,125.06,125.03,0.05477171]
[1769452477957,7.2039,125.05,125.03,0.05477171]
[1769452478166,52.56069075,125.07,125.03,0.05477171]
[1769452478365,52.56069075,125.07,124.98,64.01884621]
[1769452478562,0.05536839,125.05,124.98,64.01884621]
[1769452479958,7.2045,125.04,124.98,64.01884621]
[1769452480756,0.05376367,125.02,124.98,64.01884621]
[1769452480958,7.2045,125.04,124.98,64.01884621]
[1769452481960,59.75032695,125.06,124.98,71.22664621]
[1769452482162,52.50265695,125.09,125.01,64.01884621]
[1769452482956,7.2026,125.08,125.04,0.05167644]
[1769452483161,52.48673182,125.11,125.04,0.05167644]
[1769452483360,0.05622535,125.06,125.04,0.05167644]
[1769452483756,7.2011,125.1,125.03,71.22384621]
[1769452483960,7.2011,125.1,125.04,0.05265572]
[1769452487769,52.48673182,125.11,125.04,0.05265572]
[1769452488468,7.201,125.1,125.04,0.05265572]
[1769452489166,59.74587948,125.1,125.04,0.05265572]
[1769452491577,59.74587948,125.1,125.04,2.39741376]
[1769452491873,59.74587948,125.1,125.05,2.34475804]
[1769452492065,59.74587948,125.1,125.04,2.39741376]
[1769452494872,7.2016,125.09,125.04,0.05265572]
[1769452495076,52.44433751,125.08,125.04,0.05265572]
[1769452496678,61.9087121,125.07,125.0,7.2062]
[1769452496979,52.36105406,125.06,125.0,69.66362752]
[1769452498082,52.36105406,125.06,125.02,0.05267752]
[1769452499877,0.05329339,125.05,125.02,0.05267752]
[1769452500475,7.25719339,125.05,125.02,0.05267752]
[1769452500684,2.34475804,125.03,124.96,319.14]
[1769452500889,2.34475804,125.02,124.96,319.14]
[1769452501282,54.58987734,125.03,124.96,319.14]
[1769452501781,61.79497734,125.03,124.96,381.59742752]
[1769452501993,0.0584416,125.01,124.96,379.25266948]
[1769452502185,2.34475804,125.0,124.93,62.45742752]
[1769452502386,54.55936541,125.0,124.93,62.45742752]
[1769452502789,54.55936541,125.0,124.93,60.11266948]
[1769452502998,0.0557145,124.98,124.94,2.34475804]
[1769452503194,0.0557145,124.98,124.94,62.45742752]
[1769452503398,54.55936541,125.02,124.95,62.45742752]
[1769452503696,54.55936541,125.02,124.95,62.51168878]
[1769452503889,7.2056,125.03,124.97,2.34475804]
[1769452504090,7.2056,125.03,124.96,62.45742752]
[1769452504296,54.54494596,125.04,124.96,62.45742752]
[1769452504499,52.20018792,125.04,124.97,2.34475804]
[1769452504696,52.20018792,125.04,124.98,0.05997114]
[1769452505390,59.40478792,125.04,124.98,0.05997114]
[1769452505791,61.74954596,125.04,124.98,0.05997114]
[1769452507598,52.20018792,125.04,124.98,60.17264062]
[1769452507898,7.2038,125.06,124.98,60.17264062]
[1769452507899,52.1398339,125.06,124.99,62.45742752]
[1769452508103,112.0243,125.1,125.01,2.34475804]
[1769452508104,54.48459194,125.08,125.01,2.34475804]
[1769452508289,52.1398339,125.08,125.01,62.45742752]
[1769452508598,54.48459194,125.08,125.01,62.45742752]
[1769452508801,0.05081796,125.06,125.03,0.05934873]
[1769452509195,52.12446792,125.11,125.03,2.40410677]
[1769452509496,54.46922596,125.11,125.04,2.34475804]
[1769452510201,52.12446792,125.11,125.04,2.34475804]
[1769452510401,59.2937654,125.1,125.04,2.34475804]
[1769452510700,59.2937654,125.1,125.06,0.05137343]
[1769452510896,7.2018,125.09,125.03,60.11266948]
[1769452511099,61.63922344,125.09,125.02,7.2055]
[1769452511400,61.63922344,125.09,125.02,9.55025804]
[1769452511603,59.2944654,125.09,125.02,7.2055]
[1769452512400,59.2944654,125.09,125.04,0.05075219]
[1769452512599,7.2023,125.08,125.04,0.05075219]
[1769452512899,52.06249183,125.08,125.0,7.2063]
[1769452513992,59.20010519,125.07,125.0,7.2063]
[1769452515198,59.20010519,125.07,125.0,67.31896948]
[1769452515596,51.96656439,125.06,124.98,319.22]
[1769452515804,0.05302775,125.05,124.98,319.22]
[1769452516406,0.05302775,125.05,124.98,386.54056948]
[1769452516606,0.05302775,125.05,125.0,0.05679684]
[1769452519407,0.05302775,125.05,125.0,61.77557352]
[1769452519599,7.2025,125.08,125.0,61.77557352]
[1769452519806,51.90644622,125.09,125.0,61.77557352]
[1769452520008,59.10804622,125.09,125.02,61.71877668]
[1769452520905,59.10804622,125.09,125.04,0.05910866]
[1769452522304,7.2023,125.08,125.04,0.05910866]
[1769452523502,51.90644622,125.09,125.04,0.05910866]
[1769452523711,7.2014,125.1,125.04,0.05910866]
[1769452524208,59.03511884,125.1,125.04,0.05910866]
[1769452525601,51.80578446,125.13,125.06,61.71877668]
[1769452526506,0.05046747,125.11,125.08,0.05635765]
[1769452526716,51.7921405,125.16,125.08,61.77513433]
[1769452527107,51.7921405,125.16,125.09,68.92027668]
[1769452527807,58.9897405,125.16,125.09,61.71877668]
[1769452528115,58.9897405,125.16,125.11,0.06146006]
[1769452528411,51.7921405,125.16,125.11,0.06146006]
[1769452528811,51.7654956,125.19,125.11,0.06146006]
[1769452529210,51.7654956,125.19,125.11,61.78023674]
[1769452529415,51.7654956,125.19,125.11,61.71877668]
[1769452529714,58.9613956,125.19,125.14,0.05510924]
[1769452531816,7.1952,125.21,125.14,61.77388592]
[1769452532414,7.1952,125.21,125.14,61.71877668]
[1769452532717,7.1952,125.21,125.16,0.06061843]
[1769452534017,58.88769976,125.21,125.16,0.06061843]
[1769452534514,51.6777519,125.24,125.16,61.77939511]
[1769452534910,163.5816519,125.23,125.16,0.06061843]
[1769452535107,51.6777519,125.21,125.13,61.71877668]
[1769452535517,51.6777519,125.21,125.18,0.05251932]
[1769452536107,51.66330689,125.24,125.18,0.05251932]
[1769452537312,51.59619474,125.23,125.13,61.71877668]
[1769452537513,51.58323715,125.21,125.12,319.04]
[1769452538022,58.77873715,125.2,125.12,319.04]
[1769452538324,51.58323715,125.2,125.12,380.75877668]
[1769452538814,51.58323715,125.2,125.15,0.05550379]
[1769452539015,58.76565803,125.18,125.12,319.04]
[1769452539211,51.62997427,125.17,125.09,61.71877668]
[1769452539616,7.1978,125.16,125.09,61.71877668]
[1769452540519,0.05406738,125.14,125.09,61.71877668]
[1769452540923,7.1969,125.18,125.11,61.77323254]
[1769452543116,7.1969,125.18,125.11,68.97363254]
[1769452543323,51.54117813,125.2,125.11,68.97363254]
[1769452543820,51.54117813,125.2,125.11,68.91917668]
[1769452544217,51.49920393,125.23,125.14,61.77064694]
[1769452544418,51.49920393,125.22,125.14,61.77064694]
[1769452544716,51.49920393,125.22,125.14,61.71877668]
[1769452545022,51.49920393,125.22,125.17,0.05423896]